[Event "African Online-ch Women 2021"]
[Site "Online"]
[Date "2021.02.01"]
[Round "4.12"]
[White "Du Plessis, Anika"]
[Black "Leboela, Maboloko"]
[Result "1-0"]
[ECO "B57"]
[WhiteElo "1541"]
[BlackElo "1296"]
[Annotator "NA RC"]
[PlyCount "99"]
[EventDate "2021.02.01"]
[EventType "swiss"]
[EventCountry "NET"]
[SourceTitle "playchess.com"]
[Source "ChessBase"]
[SourceQuality "1"]
[TimeControl "1500+10"]

1. e4 {[%emt 0:00:00]} c5 {[%emt 0:00:05]} 2. Nf3 {[%emt 0:00:03]} Nc6 {[%emt 0:00:06]} 3. d4 {[%emt 0:00:03]} cxd4 {[%emt 0:00:03]} 4. Nxd4 {[%emt 0:00:02]} d6 {[%emt 0:00:05]} 5. Bc4 {[%emt 0:00:29]} Nf6 {[%emt 0:00:07]} 6. Nc3 {[%emt 0:00:14]} g6 {[%emt 0:00:05]} 7. O-O {[%emt 0:00:06]} Bg7 {[%emt 0:00:03]} 8. Nde2 {[%emt 0:00:15]} O-O {[%emt 0:00:05]} 9. Bg5 {[%emt 0:01:37]} Ne5 {[%emt 0:00:46]} 10. Bb3 {[%emt 0:00:41]} b6 {[%emt 0:00:33]} 11. Nd5 {[%emt 0:02:21]} Nxd5 {[%emt 0:00:49]} 12. Bxd5 {[%emt 0:00:08]} Rb8 {[%emt 0:00:05]} 13. Nc3 {[%emt 0:02:08]} Qc7 {[%emt 0:00:30]} 14. Nb5 {[%emt 0:02:20]} Qd7 {[%emt 0:00:09]} 15. Nc3 {[%emt 0:00:50]} e6 {[%emt 0:00:08]} 16. Bb3 {[%emt 0:00:20]} b5 {[%emt 0:01:26]} 17. a4 {[%emt 0:02:35]} b4 {[%emt 0:00:06]} 18. Nb5 {[%emt 0:00:05]} Rb6 {[%emt 0:00:37]} 19. Qd2 {[%emt 0:00:33]} a6 {[%emt 0:00:42]} 20. Nd4 {[%emt 0:00:26]} Bb7 {[%emt 0:00:49]} 21. a5 {[%emt 0:00:27]} Rb5 {[%emt 0:00:50]} 22. Nxb5 {[%emt 0:00:49]} Qxb5 {[%emt 0:00:12]} 23. Bh6 {[%emt 0:00:13]} Nc4 {[%emt 0:00:19]} 24. Bxc4 {[%emt 0:00:06]} Qxc4 {[%emt 0:00:05]} 25. Bxg7 {[%emt 0:00:03]} Kxg7 {[%emt 0:00:04]} 26. Qxd6 {[%emt 0:00:17]} Qxe4 {[%emt 0:00:15]} 27. f3 {[%emt 0:00:11]} Qxc2 {[%emt 0:00:30]} 28. Qxb4 {[%emt 0:00:05]} Bd5 {[%emt 0:00:22]} 29. Qc3+ {[%emt 0:00:33]} Qxc3 {[%emt 0:00:05]} 30. bxc3 {[%emt 0:00:01]} Bc4 {[%emt 0:00:05]} 31. Rfd1 {[%emt 0:00:05]} Rb8 {[%emt 0:00:07]} 32. Rab1 {[%emt 0:00:06]} Rc8 {[%emt 0:00:08]} 33. Rb7 {[%emt 0:00:16]} Bd5 {[%emt 0:00:29]} 34. Rb6 {[%emt 0:00:09]} Bc4 {[%emt 0:00:06]} 35. Kf2 {[%emt 0:00:20]} h5 {[%emt 0:00:04]} 36. Ke3 {[%emt 0:00:40]} Kf6 {[%emt 0:00:06]} 37. h4 {[%emt 0:00:18]} Kf5 {[%emt 0:00:19]} 38. Rb7 {[%emt 0:00:12]} f6 {[%emt 0:00:14]} 39. Rb4 {[%emt 0:00:19]} Bd5 {[%emt 0:00:21]} 40. Rd3 {[%emt 0:00:47]} Bc4 {[%emt 0:00:33]} 41. Rd4 {[%emt 0:00:36]} Bd5 {[%emt 0:00:49]} 42. Kd3 {[%emt 0:00:11]} Rc5 {[%emt 0:00:16]} 43. c4 {[%emt 0:00:20]} Bc6 {[%emt 0:00:36]} 44. Rb6 {[%emt 0:00:13]} e5 {[%emt 0:00:50]} 45. Rd6 {[%emt 0:00:14]} e4+ {[%emt 0:00:08]} 46. Kd4 {[%emt 0:00:29]} Rxa5 {[%emt 0:02:26]} 47. Rbxc6 {[%emt 0:00:09]} exf3 {[%emt 0:00:20]} 48. gxf3 {[%emt 0:00:05]} Kf4 {[%emt 0:00:02]} 49. Rxf6+ {[%emt 0:00:05]} Kg3 {[%emt 0:00:03]} 50. Rxa6 {[%emt 0:00:27]} 1-0

[Event "African Online-ch Women 2021"]
[Site "Online"]
[Date "2021.02.01"]
[Round "4.13"]
[White "Ibtihal Mohammed"]
[Black "Joao, Delfina"]
[Result "0-1"]
[ECO "C02"]
[WhiteElo "1491"]
[BlackElo "1727"]
[Annotator "NA RC"]
[PlyCount "89"]
[EventDate "2021.02.01"]
[EventType "swiss"]
[EventCountry "NET"]
[SourceTitle "playchess.com"]
[Source "ChessBase"]
[SourceQuality "1"]
[TimeControl "1500+10"]

1. e4 {[%emt 0:00:00]} e6 {[%emt 0:00:06]} 2. d4 {[%emt 0:00:07]} d5 {[%emt 0:00:04]} 3. e5 {[%emt 0:00:04]} c5 {[%emt 0:00:04]} 4. c3 {[%emt 0:00:03]} Nc6 {[%emt 0:00:06]} 5. Nf3 {[%emt 0:00:04]} Qb6 {[%emt 0:00:06]} 6. Bd3 {[%emt 0:00:06]} Bd7 {[%emt 0:00:05]} 7. dxc5 {[%emt 0:00:03]} Bxc5 {[%emt 0:00:07]} 8. O-O {[%emt 0:00:04]} Qc7 {[%emt 0:01:05]} 9. Bf4 {[%emt 0:00:09]} Nge7 {[%emt 0:00:25]} 10. Nbd2 {[%emt 0:00:08]} O-O {[%emt 0:00:37]} 11. Nb3 {[%emt 0:00:04]} Bb6 {[%emt 0:00:07]} 12. Rc1 {[%emt 0:00:25]} Ng6 {[%emt 0:00:07]} 13. Bg3 {[%emt 0:00:10]} Rac8 {[%emt 0:00:23]} 14. Nbd4 {[%emt 0:00:03]} Nxd4 {[%emt 0:06:14]} 15. cxd4 {[%emt 0:01:39]} Qxc1 {[%emt 0:00:37]} 16. Qxc1 {[%emt 0:00:05]} Rxc1 {[%emt 0:00:05]} 17. Rxc1 {[%emt 0:00:02]} Ne7 {[%emt 0:00:06]} 18. Bh4 {[%emt 0:00:19]} Nc6 {[%emt 0:00:26]} 19. Rd1 {[%emt 0:00:29]} Rc8 {[%emt 0:01:19]} 20. Bb5 {[%emt 0:00:08]} a6 {[%emt 0:00:08]} 21. Bxc6 {[%emt 0:00:03]} Rxc6 {[%emt 0:00:12]} 22. b3 {[%emt 0:00:11]} Rc2 {[%emt 0:00:09]} 23. a3 {[%emt 0:00:12]} Bb5 {[%emt 0:01:09]} 24. Bg5 {[%emt 0:01:49]} Be2 {[%emt 0:00:32]} 25. Rc1 {[%emt 0:00:05]} Rxc1+ {[%emt 0:00:10]} 26. Bxc1 {[%emt 0:00:04]} Bxf3 {[%emt 0:00:05]} 27. gxf3 {[%emt 0:00:03]} Bxd4 {[%emt 0:00:02]} 28. f4 {[%emt 0:00:03]} f6 {[%emt 0:00:08]} 29. Be3 {[%emt 0:00:04]} Bxe3 {[%emt 0:00:12]} 30. fxe3 {[%emt 0:00:02]} fxe5 {[%emt 0:00:03]} 31. fxe5 {[%emt 0:00:03]} Kf7 {[%emt 0:00:03]} 32. Kf2 {[%emt 0:00:05]} Kg6 {[%emt 0:00:04]} 33. Kf3 {[%emt 0:00:06]} Kf5 {[%emt 0:00:03]} 34. h3 {[%emt 0:00:06]} Kxe5 {[%emt 0:00:05]} 35. h4 {[%emt 0:00:04]} Kf5 {[%emt 0:00:04]} 36. a4 {[%emt 0:00:03]} b6 {[%emt 0:00:05]} 37. b4 {[%emt 0:00:03]} e5 {[%emt 0:00:06]} 38. b5 {[%emt 0:00:05]} axb5 {[%emt 0:00:08]} 39. axb5 {[%emt 0:00:03]} g6 {[%emt 0:00:09]} 40. Kg3 {[%emt 0:00:09]} Ke4 {[%emt 0:00:14]} 41. Kf2 {[%emt 0:00:02]} h6 {[%emt 0:00:06]} 42. Ke2 {[%emt 0:00:08]} g5 {[%emt 0:00:06]} 43. hxg5 {[%emt 0:00:03]} hxg5 {[%emt 0:00:03]} 44. Kf2 {[%emt 0:00:03]} g4 {[%emt 0:00:08]} 45. Ke2 {[%emt 0:00:03]} 0-1

[Event "African Online-ch Women 2021"]
[Site "Online"]
[Date "2021.02.01"]
[Round "4.14"]
[White "Malehloa, Likhomo"]
[Black "Castro, Neusa Aridas De"]
[Result "1-0"]
[ECO "D00"]
[WhiteElo "1331"]
[BlackElo "1512"]
[Annotator "NA RC"]
[PlyCount "147"]
[EventDate "2021.02.01"]
[EventType "swiss"]
[EventCountry "NET"]
[SourceTitle "playchess.com"]
[Source "ChessBase"]
[SourceQuality "1"]
[TimeControl "1500+10"]

1. d4 {[%emt 0:00:00]} e6 {[%emt 0:00:12]} 2. Nc3 {[%emt 0:00:05]} d5 {[%emt 0:00:04]} 3. Bf4 {[%emt 0:00:08]} c5 {[%emt 0:00:05]} 4. e3 {[%emt 0:00:10]} Qb6 {[%emt 0:00:06]} 5. b3 {[%emt 0:01:47]} Nc6 {[%emt 0:00:14]} 6. Nf3 {[%emt 0:00:35]} Bd7 {[%emt 0:00:06]} 7. Be2 {[%emt 0:00:07]} Nge7 {[%emt 0:01:10]} 8. O-O {[%emt 0:00:05]} Ng6 {[%emt 0:00:08]} 9. Bg3 {[%emt 0:00:07]} cxd4 {[%emt 0:00:29]} 10. exd4 {[%emt 0:00:20]} Be7 {[%emt 0:00:11]} 11. Nb5 {[%emt 0:01:08]} O-O {[%emt 0:00:17]} 12. c4 {[%emt 0:00:19]} dxc4 {[%emt 0:01:49]} 13. bxc4 {[%emt 0:00:21]} a6 {[%emt 0:00:15]} 14. Nc3 {[%emt 0:00:11]} Bf6 {[%emt 0:00:23]} 15. Rb1 {[%emt 0:00:27]} Qa5 {[%emt 0:00:45]} 16. Ne4 {[%emt 0:00:06]} Nd8 {[%emt 0:03:52]} 17. Nxf6+ {[%emt 0:00:12]} gxf6 {[%emt 0:00:04]} 18. Qd2 {[%emt 0:01:55]} Qxd2 {[%emt 0:00:28]} 19. Nxd2 {[%emt 0:00:09]} Bc6 {[%emt 0:00:02]} 20. Rb2 {[%emt 0:01:16]} f5 {[%emt 0:00:05]} 21. f3 {[%emt 0:00:19]} f6 {[%emt 0:00:16]} 22. Bf2 {[%emt 0:00:09]} Nf7 {[%emt 0:00:08]} 23. Rfb1 {[%emt 0:00:14]} Nf4 {[%emt 0:00:09]} 24. Bf1 {[%emt 0:00:14]} Ng5 {[%emt 0:01:33]} 25. Be3 {[%emt 0:00:46]} Ng6 {[%emt 0:00:13]} 26. Bf2 {[%emt 0:01:23]} Rad8 {[%emt 0:00:32]} 27. Nb3 {[%emt 0:00:22]} b6 {[%emt 0:03:24]} 28. Nd2 {[%emt 0:00:39]} b5 {[%emt 0:00:56]} 29. cxb5 {[%emt 0:00:09]} axb5 {[%emt 0:00:04]} 30. Bxb5 {[%emt 0:00:06]} Bxb5 {[%emt 0:00:03]} 31. Rxb5 {[%emt 0:00:04]} Nf4 {[%emt 0:00:02]} 32. Be3 {[%emt 0:01:02]} Ne2+ {[%emt 0:00:10]} 33. Kf2 {[%emt 0:00:15]} Nxd4 {[%emt 0:00:04]} 34. Bxd4 {[%emt 0:00:28]} Rxd4 {[%emt 0:00:10]} 35. R1b2 {[%emt 0:00:24]} Rfd8 {[%emt 0:00:08]} 36. Nf1 {[%emt 0:00:31]} R8d7 {[%emt 0:00:44]} 37. R5b4 {[%emt 0:01:05]} R4d6 {[%emt 0:00:37]} 38. Rb7 {[%emt 0:00:27]} Nf7 {[%emt 0:00:14]} 39. Rxd7 {[%emt 0:00:09]} Rxd7 {[%emt 0:00:07]} 40. a4 {[%emt 0:00:05]} Ra7 {[%emt 0:00:08]} 41. Ra2 {[%emt 0:00:03]} Nd6 {[%emt 0:00:05]} 42. Ne3 {[%emt 0:00:08]} Kf7 {[%emt 0:00:07]} 43. Ke2 {[%emt 0:00:07]} Nb5 {[%emt 0:00:11]} 44. Kd3 {[%emt 0:00:27]} Ke7 {[%emt 0:00:21]} 45. Kc4 {[%emt 0:00:05]} Nd6+ {[%emt 0:00:04]} 46. Kc5 {[%emt 0:00:12]} Kd7 {[%emt 0:00:18]} 47. a5 {[%emt 0:00:18]} Ra6 {[%emt 0:00:17]} 48. Kb4 {[%emt 0:00:23]} Kc6 {[%emt 0:00:07]} 49. Rc2+ {[%emt 0:00:09]} Kd7 {[%emt 0:00:05]} 50. Nc4 {[%emt 0:00:12]} Nb7 {[%emt 0:00:14]} 51. Kb5 {[%emt 0:00:15]} Ra8 {[%emt 0:00:18]} 52. a6 {[%emt 0:00:05]} Nd8 {[%emt 0:00:12]} 53. Nb6+ {[%emt 0:00:12]} Kd6 {[%emt 0:01:05]} 54. Nxa8 {[%emt 0:00:05]} Nf7 {[%emt 0:00:12]} 55. Rd2+ {[%emt 0:00:15]} Ke5 {[%emt 0:00:05]} 56. Nc7 {[%emt 0:00:08]} Nd6+ {[%emt 0:00:11]} 57. Kc6 {[%emt 0:00:23]} Nc8 {[%emt 0:00:14]} 58. Kb7 {[%emt 0:00:27]} Nd6+ {[%emt 0:00:07]} 59. Rxd6 {[%emt 0:00:12]} Kxd6 {[%emt 0:00:03]} 60. a7 {[%emt 0:00:03]} e5 {[%emt 0:00:03]} 61. a8=Q {[%emt 0:00:04]} e4 {[%emt 0:00:01]} 62. fxe4 {[%emt 0:00:04]} fxe4 {[%emt 0:00:03]} 63. Qd8+ {[%emt 0:00:05]} Ke5 {[%emt 0:00:05]} 64. Qe7+ {[%emt 0:00:02]} Kd4 {[%emt 0:00:03]} 65. Qxh7 {[%emt 0:00:04]} e3 {[%emt 0:00:03]} 66. Qe7 {[%emt 0:00:10]} f5 {[%emt 0:00:04]} 67. h4 {[%emt 0:00:03]} f4 {[%emt 0:00:02]} 68. h5 {[%emt 0:00:03]} Kd3 {[%emt 0:00:03]} 69. h6 {[%emt 0:00:02]} e2 {[%emt 0:00:01]} 70. h7 {[%emt 0:00:03]} Kd2 {[%emt 0:00:02]} 71. h8=Q {[%emt 0:00:03]} e1=Q {[%emt 0:00:03]} 72. Qxe1+ {[%emt 0:00:03]} Kxe1 {[%emt 0:00:02]} 73. Nd5 {[%emt 0:00:08]} Kf2 {[%emt 0:00:02]} 74. Nxf4 {[%emt 0:00:03]} 1-0

[Event "African Online-ch Women 2021"]
[Site "Online"]
[Date "2021.02.01"]
[Round "4.15"]
[White "Jambo, Linda"]
[Black "Sitoe, Cheila Andre"]
[Result "0-1"]
[ECO "C54"]
[WhiteElo "1478"]
[BlackElo "1588"]
[Annotator "NA RC"]
[PlyCount "62"]
[EventDate "2021.02.01"]
[EventType "swiss"]
[EventCountry "NET"]
[SourceTitle "playchess.com"]
[Source "ChessBase"]
[SourceQuality "1"]
[TimeControl "1500+10"]

1. e4 {[%emt 0:00:00]} e5 {[%emt 0:00:10]} 2. Nf3 {[%emt 0:00:06]} Nc6 {[%emt 0:00:11]} 3. Bc4 {[%emt 0:00:18]} Bc5 {[%emt 0:00:09]} 4. c3 {[%emt 0:00:42]} Nf6 {[%emt 0:00:09]} 5. d4 {[%emt 0:02:32]} exd4 {[%emt 0:00:09]} 6. cxd4 {[%emt 0:00:03]} Bb4+ {[%emt 0:00:12]} 7. Nc3 {[%emt 0:01:08]} O-O {[%emt 0:00:44]} 8. O-O {[%emt 0:00:13]} Bxc3 {[%emt 0:00:12]} 9. bxc3 {[%emt 0:00:06]} Nxe4 {[%emt 0:00:06]} 10. Qd3 {[%emt 0:00:27]} d5 {[%emt 0:00:25]} 11. Bb3 {[%emt 0:00:29]} h6 {[%emt 0:00:12]} 12. Re1 {[%emt 0:00:20]} Bf5 {[%emt 0:00:21]} 13. Qb5 {[%emt 0:06:17]} Nxc3 {[%emt 0:05:02]} 14. Qxb7 {[%emt 0:00:34]} Ne7 {[%emt 0:00:10]} 15. Qb4 {[%emt 0:01:50]} Ne4 {[%emt 0:00:08]} 16. Bxd5 {[%emt 0:01:09]} Nxd5 {[%emt 0:00:17]} 17. Qa5 {[%emt 0:02:28]} Bh7 {[%emt 0:00:26]} 18. Ba3 {[%emt 0:00:42]} Re8 {[%emt 0:00:32]} 19. Ne5 {[%emt 0:00:32]} Ndf6 {[%emt 0:02:24]} 20. Qa4 {[%emt 0:03:32]} Qd5 {[%emt 0:00:57]} 21. f3 {[%emt 0:02:53]} Nd6 {[%emt 0:01:28]} 22. Bxd6 {[%emt 0:00:10]} Qxd6 {[%emt 0:00:31]} 23. Qc4 {[%emt 0:01:16]} Qd5 {[%emt 0:00:19]} 24. Rac1 {[%emt 0:00:25]} Bf5 {[%emt 0:02:03]} 25. Qxd5 {[%emt 0:00:42]} Nxd5 {[%emt 0:00:07]} 26. Nc6 {[%emt 0:00:04]} Rxe1+ {[%emt 0:00:09]} 27. Rxe1 {[%emt 0:00:03]} Be6 {[%emt 0:00:22]} 28. g3 {[%emt 0:00:15]} a6 {[%emt 0:00:32]} 29. f4 {[%emt 0:00:08]} a5 {[%emt 0:00:17]} 30. Re5 {[%emt 0:00:09]} Nb4 {[%emt 0:00:22]} 31. Ne7+ {[%emt 0:00:22]} Kf8 {[%emt 0:00:14]} 0-1

[Event "African Online-ch Women 2021"]
[Site "Online"]
[Date "2021.02.01"]
[Round "5.4"]
[White "Francis, Onkemetse"]
[Black "Rodriguez Guevara, Celia M."]
[Result "1-0"]
[ECO "B01"]
[WhiteElo "1798"]
[BlackElo "1849"]
[Annotator "NA RC"]
[PlyCount "103"]
[EventDate "2021.02.01"]
[EventType "swiss"]
[EventCountry "NET"]
[SourceTitle "playchess.com"]
[Source "ChessBase"]
[SourceQuality "1"]
[TimeControl "1500+10"]

1. e4 {[%emt 0:00:00]} d5 {[%emt 0:00:04]} 2. exd5 {[%emt 0:00:15]} Qxd5 {[%emt 0:00:03]} 3. Nc3 {[%emt 0:00:14]} Qa5 {[%emt 0:00:02]} 4. Nf3 {[%emt 0:00:08]} Nf6 {[%emt 0:00:04]} 5. Bc4 {[%emt 0:01:29]} Bf5 {[%emt 0:00:31]} 6. O-O {[%emt 0:01:23]} e6 {[%emt 0:00:24]} 7. h3 {[%emt 0:01:37]} c6 {[%emt 0:00:32]} 8. d4 {[%emt 0:00:08]} Bd6 {[%emt 0:00:29]} 9. Bd2 {[%emt 0:01:26]} Qc7 {[%emt 0:00:05]} 10. Re1 {[%emt 0:01:05]} Nbd7 {[%emt 0:00:07]} 11. a3 {[%emt 0:00:35]} O-O-O {[%emt 0:00:32]} 12. b4 {[%emt 0:00:07]} g5 {[%emt 0:01:42]} 13. Nxg5 {[%emt 0:03:18]} Rhg8 {[%emt 0:02:08] [#]} 14. Bd3 {[%emt 0:01:13]} ({White should play} 14. Qf3 $1 $16) 14... Bxd3 {[%emt 0:03:14]} 15. cxd3 {[%emt 0:00:05]} Rg7 {[%emt 0:00:01]} 16. Qf3 {[%emt 0:06:16]} Rdg8 {[%emt 0:01:22]} 17. Nge4 {[%emt 0:00:11]} Rxg2+ {[%emt 0:01:21]} 18. Qxg2 {[%emt 0:00:03]} Rxg2+ {[%emt 0:00:25]} 19. Kxg2 {[%emt 0:00:03]} Bf4 {[%emt 0:02:05]} 20. Bxf4 {[%emt 0:01:46]} Qxf4 $15 {[%emt 0:00:03]} 21. b5 {[%emt 0:00:25]} Nh5 {[%emt 0:00:49]} 22. bxc6 {[%emt 0:00:35]} bxc6 {[%emt 0:00:04]} 23. Re3 {[%emt 0:00:47]} f5 {[%emt 0:01:42]} 24. Ne2 {[%emt 0:00:52]} Qh6 {[%emt 0:00:55]} 25. Nc5 {[%emt 0:00:35]} Nxc5 {[%emt 0:01:20]} 26. dxc5 {[%emt 0:00:03]} Qg7+ {[%emt 0:00:43]} 27. Ng3 {[%emt 0:00:27]} f4 {[%emt 0:01:07]} 28. Rxe6 {[%emt 0:00:08]} Qxa1 {[%emt 0:00:55]} 29. Nxh5 {[%emt 0:00:04]} Qxa3 {[%emt 0:00:07]} 30. Nxf4 {[%emt 0:00:19]} Qxc5 {[%emt 0:00:26]} 31. Re8+ {[%emt 0:00:17]} Kd7 {[%emt 0:00:03]} 32. Rg8 {[%emt 0:00:33]} Qe7 {[%emt 0:00:25]} 33. Rb8 {[%emt 0:00:59]} Kc7 {[%emt 0:00:14]} 34. Rb1 {[%emt 0:00:30]} a5 {[%emt 0:00:10]} 35. Rc1 {[%emt 0:00:13]} a4 {[%emt 0:00:05]} 36. Nd5+ {[%emt 0:00:03]} Kd6 {[%emt 0:00:11]} 37. Nxe7 {[%emt 0:00:03]} Kxe7 {[%emt 0:00:02]} 38. Ra1 {[%emt 0:00:02]} Kd6 {[%emt 0:00:08]} 39. Rxa4 {[%emt 0:00:04]} Kd5 {[%emt 0:00:03]} 40. f4 {[%emt 0:00:06]} c5 {[%emt 0:00:03]} 41. Kg3 {[%emt 0:00:02]} Ke6 {[%emt 0:00:06]} 42. Rc4 {[%emt 0:00:04]} Kd5 {[%emt 0:00:04]} 43. f5 {[%emt 0:00:03]} Ke5 {[%emt 0:00:04]} 44. Rxc5+ {[%emt 0:00:03]} Kd4 {[%emt 0:00:02]} 45. Rc7 {[%emt 0:00:03]} Kxd3 {[%emt 0:00:02]} 46. f6 {[%emt 0:00:02]} Ke4 {[%emt 0:00:02]} 47. f7 {[%emt 0:00:02]} h5 {[%emt 0:00:03]} 48. f8=R {[%emt 0:00:06]} h4+ {[%emt 0:00:03]} 49. Kxh4 {[%emt 0:00:02]} Kd5 {[%emt 0:00:02]} 50. Rd8+ {[%emt 0:00:03]} Ke6 {[%emt 0:00:02]} 51. Kg5 {[%emt 0:00:07]} Ke5 {[%emt 0:00:04]} 52. Re7# {[%emt 0:00:04]} 1-0

[Event "African Online-ch Women 2021"]
[Site "Online"]
[Date "2021.02.01"]
[Round "5.5"]
[White "Madelta Glenda"]
[Black "Charinda, Kudzanayi"]
[Result "0-1"]
[ECO "A45"]
[WhiteElo "1420"]
[BlackElo "1710"]
[Annotator "NA RC"]
[PlyCount "66"]
[EventDate "2021.02.01"]
[EventType "swiss"]
[EventCountry "NET"]
[SourceTitle "playchess.com"]
[Source "ChessBase"]
[SourceQuality "1"]
[TimeControl "1500+10"]

1. d4 {[%emt 0:00:00]} Nf6 {[%emt 0:01:32]} 2. Nc3 {[%emt 0:00:11]} e6 {[%emt 0:00:05]} 3. Bf4 {[%emt 0:00:06]} d6 {[%emt 0:00:22]} 4. e3 {[%emt 0:00:08]} Be7 {[%emt 0:00:08]} 5. Bd3 {[%emt 0:00:06]} O-O {[%emt 0:00:11]} 6. Nf3 {[%emt 0:00:03]} Re8 {[%emt 0:00:05]} 7. h3 {[%emt 0:00:04]} Bf8 {[%emt 0:00:10]} 8. O-O {[%emt 0:00:07]} Nbd7 {[%emt 0:00:36]} 9. e4 {[%emt 0:00:29]} a6 {[%emt 0:01:09]} 10. Bg5 {[%emt 0:00:20]} h6 {[%emt 0:00:22]} 11. Bh4 {[%emt 0:00:07]} Be7 {[%emt 0:00:04]} 12. Bg3 {[%emt 0:00:51]} b5 {[%emt 0:01:04]} 13. a3 {[%emt 0:00:12]} Bb7 {[%emt 0:00:07]} 14. Re1 {[%emt 0:00:59]} c5 {[%emt 0:00:16]} 15. e5 {[%emt 0:01:59]} dxe5 {[%emt 0:00:13]} 16. dxe5 {[%emt 0:00:12]} Nd5 {[%emt 0:00:12]} 17. Nxd5 {[%emt 0:00:27]} Bxd5 {[%emt 0:00:07]} 18. Be4 {[%emt 0:00:12]} Bxe4 {[%emt 0:01:45]} 19. Rxe4 {[%emt 0:00:15]} Nf8 {[%emt 0:00:25]} 20. Qe2 {[%emt 0:01:00]} Qc7 {[%emt 0:00:39]} 21. Nh2 {[%emt 0:01:58]} Red8 {[%emt 0:01:35]} 22. Qh5 {[%emt 0:00:34]} Ng6 {[%emt 0:00:33]} 23. Ng4 {[%emt 0:01:00]} Qc6 {[%emt 0:01:33]} 24. Rae1 {[%emt 0:00:23]} Rd4 {[%emt 0:00:23]} 25. R4e2 {[%emt 0:01:17]} Bh4 {[%emt 0:04:06]} 26. Bxh4 {[%emt 0:01:42]} Nf4 {[%emt 0:00:50]} 27. Nxh6+ {[%emt 0:00:14]} gxh6 {[%emt 0:00:25]} 28. Qg4+ {[%emt 0:01:27]} Kh7 {[%emt 0:00:28]} 29. Kf1 {[%emt 0:01:53]} Rg8 {[%emt 0:01:04]} 30. Qf3 {[%emt 0:02:15]} Qxf3 {[%emt 0:00:06]} 31. gxf3 {[%emt 0:00:06]} Nxe2 {[%emt 0:00:03]} 32. Rxe2 {[%emt 0:00:03]} Rxh4 {[%emt 0:00:04]} 33. Rd2 {[%emt 0:00:08]} Rxh3 {[%emt 0:00:20]} 0-1

[Event "African Online-ch Women 2021"]
[Site "Online"]
[Date "2021.02.01"]
[Round "5.6"]
[White "Caxita, Esperanca"]
[Black "Shaba, Linda Dalitso"]
[Result "0-1"]
[ECO "C01"]
[WhiteElo "1882"]
[BlackElo "1603"]
[Annotator "NA RC"]
[PlyCount "98"]
[EventDate "2021.02.01"]
[EventType "swiss"]
[EventCountry "NET"]
[SourceTitle "playchess.com"]
[Source "ChessBase"]
[SourceQuality "1"]
[TimeControl "1500+10"]

1. e4 {[%emt 0:00:00]} e6 {[%emt 0:00:14]} 2. d4 {[%emt 0:00:05]} d5 {[%emt 0:00:02]} 3. exd5 {[%emt 0:00:02]} exd5 {[%emt 0:00:04]} 4. Bd3 {[%emt 0:00:05]} Nf6 {[%emt 0:00:07]} 5. Nf3 {[%emt 0:00:02]} Bd6 {[%emt 0:00:03]} 6. O-O {[%emt 0:00:05]} O-O {[%emt 0:00:03]} 7. Bg5 {[%emt 0:00:04]} Bg4 {[%emt 0:00:04]} 8. Nbd2 {[%emt 0:00:09]} Nbd7 {[%emt 0:00:04]} 9. c3 {[%emt 0:00:02]} c6 {[%emt 0:00:03]} 10. Re1 {[%emt 0:00:07]} Qc7 {[%emt 0:00:11]} 11. h3 {[%emt 0:00:10]} Bh5 {[%emt 0:00:04]} 12. Qc2 {[%emt 0:00:03]} Rfe8 {[%emt 0:00:06]} 13. a3 {[%emt 0:00:59]} a5 {[%emt 0:00:27]} 14. Rac1 {[%emt 0:01:44]} b5 {[%emt 0:00:24]} 15. a4 {[%emt 0:00:37]} Bg6 {[%emt 0:02:41]} 16. Ra1 {[%emt 0:01:06]} b4 {[%emt 0:00:57]} 17. Bxg6 {[%emt 0:01:28]} hxg6 {[%emt 0:00:06]} 18. cxb4 {[%emt 0:01:34]} Bxb4 {[%emt 0:00:11]} 19. Rac1 {[%emt 0:00:22]} Rxe1+ {[%emt 0:00:10]} 20. Nxe1 {[%emt 0:00:14]} Rc8 {[%emt 0:00:27]} 21. Nd3 {[%emt 0:00:12]} Bd6 {[%emt 0:01:02]} 22. Nb3 {[%emt 0:01:27]} Qb6 {[%emt 0:01:21]} (22... Qa7 $11) 23. Bd2 {[%emt 0:01:29]} Bb4 {[%emt 0:03:28]} 24. Bxb4 {[%emt 0:04:13]} axb4 {[%emt 0:00:06]} 25. Ndc5 {[%emt 0:00:12]} Nxc5 {[%emt 0:00:29]} 26. Qxc5 {[%emt 0:00:07]} Qb8 {[%emt 0:02:59]} 27. Na5 {[%emt 0:02:26]} Ne4 $18 {[%emt 0:04:51]} (27... Qf4 $16 {was called for.}) 28. Qc2 {[%emt 0:00:06]} Qf4 {[%emt 0:03:14]} 29. Rf1 {[%emt 0:04:31]} c5 {[%emt 0:02:14]} 30. Nb3 {[%emt 0:02:14]} c4 {[%emt 0:00:14]} 31. Qc1 {[%emt 0:00:36]} Qf6 {[%emt 0:01:05]} 32. f3 {[%emt 0:00:27]} Ng3 {[%emt 0:00:09]} 33. Re1 {[%emt 0:00:06]} Ra8 {[%emt 0:00:08]} 34. Na1 {[%emt 0:00:41]} Qxd4+ {[%emt 0:00:10]} 35. Kh2 {[%emt 0:00:03]} Nf5 {[%emt 0:00:09]} 36. Nc2 {[%emt 0:00:11]} Qc5 {[%emt 0:00:10]} 37. Qa1 {[%emt 0:00:23]} d4 {[%emt 0:00:22]} 38. Qd1 {[%emt 0:01:13]} d3 {[%emt 0:00:07]} 39. Na1 {[%emt 0:00:08]} Qd4 {[%emt 0:00:17]} 40. b3 {[%emt 0:00:18]} c3 {[%emt 0:00:08]} 41. Re4 {[%emt 0:00:46]} Qd5 {[%emt 0:00:21]} 42. g3 {[%emt 0:00:21]} Qd6 {[%emt 0:00:09]} 43. f4 {[%emt 0:00:16]} Rc8 {[%emt 0:00:26]} 44. g4 {[%emt 0:00:26]} c2 {[%emt 0:00:19]} 45. Nxc2 {[%emt 0:00:09]} dxc2 {[%emt 0:00:05]} 46. Qc1 {[%emt 0:00:11]} Qd1 {[%emt 0:00:30]} 47. Re1 {[%emt 0:00:06]} Qxe1 {[%emt 0:00:05]} 48. Qxe1 {[%emt 0:00:09]} c1=Q {[%emt 0:00:06]} 49. Qxc1 {[%emt 0:00:04]} Rc7 {[%emt 0:00:04]} 0-1